[Event "Croatian 1B League 2022"]
[Site "Porec"]
[Date "2022.10.02"]
[Round "9.6"]
[White "Novak, Ivan"]
[Black "Biliskov, Vjekoslav"]
[Result "1-0"]
[ECO "D03"]
[WhiteElo "2247"]
[BlackElo "2245"]
[Annotator "TA"]
[PlyCount "177"]
[EventDate "2022.09.24"]
[EventType "team-tourn"]
[EventCountry "CRO"]
[SourceTitle "playchess.com"]
[Source "ChessBase"]
[SourceQuality "1"]
[TimeControl "40/5400+30:1800+30"]

{[%evp 15,177,0,2,0,0,3,7,0,4,1,45,0,0,0,0,0,0,7,10,9,26,-12,-10,-15,-10,-6,0,0,0,-22,17,18,43,37,78,72,122,82,229,228,135,0,40,33,31,0,8,10,92,87,136,14,13,0,0,0,131,0,0,0,104,0,0,0,0,0,0,0,123,105,367,339,364,319,365,260,464,475,468,467,451,366,363,358,354,325,356,298,557,583,811,795,788,788,788,788,788,778,768,760,697,500,489,466,456,441,396,345,301,253,236,204,204,204,457,168,170,172,232,231,220,204,201,171,183,153,247,216,255,207,257,225,214,184,359,331,475,465,500,552,449,502,492,408,754,727,706,622,603,538,795,795,795,795,795,795,795,795,795,795,795,795,29987,29988]} 1. d4 {[%emt 0:00:02]} Nf6 {[%emt 0:00:09]} 2. Nf3 {[%emt 0:00:09]} b6 {[%emt 0:00:26]} 3. Bg5 {[%emt 0:01:40]} Bb7 {[%emt 0:00:17]} 4. Nbd2 {[%emt 0:01:55]} g6 {[%emt 0:01:36]} 5. e3 {[%emt 0:06:04]} Bg7 {[%emt 0:00:30]} 6. Bd3 {[%emt 0:00:39]} O-O {[%emt 0:02:00]} 7. O-O {[%emt 0:02:27]} c5 {[%emt 0:03:06]} 8. c3 {[%emt 0:00:53]} d5 {[%emt 0:03:31]} 9. Ne5 {[%emt 0:04:09] D03: 1 d4 d5 2 Nf3 Nf6 3 Bg5, including Torre Attack with early ...d5.} Nfd7 {[%emt 0:04:23]} 10. Nxd7 {[%emt 0:13:54]} Nxd7 {[%emt 0:00:50]} 11. f4 {[%emt 0:00:14] The position is equal.} Qe8 {[%emt 0:26:13]} 12. Qg4 {[%emt 0:18:54] [#]} f6 $146 {[%emt 0:11:57]} ({Predecessor:} 12... e6 13. Qh3 a6 14. Bh6 Bxh6 15. Qxh6 Qe7 16. Rae1 b5 17. Rf3 Rfc8 18. g4 b4 {1-0 (41) Nikolic,Z-Cvitan,O Borovo 1981}) 13. Bb5 {[%emt 0:09:09]} e6 {[%emt 0:08:02]} 14. Bh4 {[%emt 0:01:49]} a6 {[%emt 0:00:36]} 15. Bd3 {[%emt 0:08:50]} e5 {[%emt 0:04:46]} 16. fxe5 {[%emt 0:04:39]} fxe5 {[%emt 0:02:02]} 17. Rxf8+ {[%emt 0:00:27]} Nxf8 {[%emt 0:00:10]} 18. dxe5 {[%emt 0:01:26]} Qxe5 {[%emt 0:00:54]} 19. e4 {[%emt 0:01:42]} c4 {[%emt 0:06:20]} 20. Bc2 {[%emt 0:03:24]} b5 {[%emt 0:00:18]} 21. Nf3 {[%emt 0:02:49] Prevents d4.} Qe6 {[%emt 0:01:27]} 22. Qf4 {[%emt 0:05:09]} h6 {[%emt 0:06:26][%cal Rd5e4]} 23. exd5 {[%emt 0:00:54]} Bxd5 {[%emt 0:02:06]} 24. Re1 {[%emt 0:00:26]} Qf7 {[%emt 0:02:18]} 25. Qd6 {[%emt 0:01:58]} Bxf3 {[%emt 0:02:53]} (25... Qd7 $142 26. Qxd7 Nxd7) 26. gxf3 $16 {[%emt 0:01:44]} Qxf3 {[%emt 0:02:10]} (26... Ra7 $16 {was necessary.}) 27. Re7 $1 $18 {[%emt 0:00:59]} Rc8 {[%emt 0:03:23]} 28. Qxa6 {[%emt 0:01:54] The board is on fire.} ({White has to play} 28. Be4 $1 $16 {[%cal Re4f3]} Qg4+ 29. Bg3) 28... Qg4+ {[%emt 0:01:41]} 29. Bg3 {[%emt 0:00:07]} Rd8 {[%emt 0:00:35]} 30. Qb7 {[%emt 0:01:18]} (30. Qxb5 $5 {[%cal Re7e4]} Rd2 31. Ba4 $14 (31. Qe8 $2 Qf3 $19)) 30... Bf6 {[%emt 0:00:50]} 31. Re1 {[%emt 0:04:49]} Rd2 {[%emt 0:00:41]} (31... Bh4 $11 32. Qe4 (32. Re4 Qg5 $11) 32... Qxe4 33. Bxe4 Bxg3 34. hxg3 Rd6) 32. Be4 $1 $16 {[%emt 0:00:20]} Rd1 {[%emt 0:01:55]} (32... Qg5 $142) 33. Bd5+ {[%emt 0:01:00]} ({Better is} 33. Rxd1 $1 $16 {White threatens Bd5+ and mate.} Qxd1+ 34. Kf2) 33... Kh8 $11 {[%emt 0:00:12] ( -> ...Rxe1+)} 34. Rxd1 {[%emt 0:00:26]} (34. Kh1 $2 Rxe1+ 35. Bxe1 Qe2 $19) 34... Qxd1+ {[%emt 0:00:05]} 35. Kg2 {[%emt 0:00:07]} Qe2+ {[%emt 0:00:16]} (35... Ne6 $1 $11 {remains equal.}) 36. Kg1 {[%emt 0:00:24]} (36. Bf2 $1 $16 {Threatens to win with Qf7.} Ne6 37. Qc8+ Nd8 38. Qc5) 36... Qd1+ {[%emt 0:00:35]} 37. Kg2 {[%emt 0:00:48]} ({White should play} 37. Kf2 $11 Qd2+ 38. Kf1 Qd1+ 39. Be1) 37... Qe2+ $16 {[%emt 0:00:13] [#]} 38. Kg1 {[%emt 0:00:31]} (38. Bf2 $1 $16 {Hoping for Qf7.} Ne6 39. Qc8+ Nd8 40. Qc5) 38... Qd1+ $11 {[%emt 0:00:18]} 39. Kf2 {[%emt 0:01:07]} Qd2+ {[%emt 0:01:17]} 40. Kf1 {[%emt 0:00:00] Strongly threatening Qf7.} Qd3+ {[%emt 0:00:00]} (40... Qd1+ $11 41. Be1 Qd3+ 42. Kg1 Qb1) 41. Kg2 $16 {[%emt 0:13:51] Black must now prevent Qf7. Active counter play!} Qe2+ {[%emt 0:05:47] [#]} 42. Bf2 $1 {[%emt 0:01:20] And now Qf7 would win. White stays focused until the end.} Qg4+ $2 {[%emt 0:04:38][%mdl 8192]} (42... Bh4 $2 43. Qf7 Qxf2+ 44. Qxf2 Bxf2 45. Kxf2 $18) (42... Ne6 $16) 43. Kh1 $18 {[%emt 0:03:16] Qf7 is the strong threat.} Qd7 {[%emt 0:01:49]} 44. Qc6 {[%emt 0:02:35]} Kg7 {[%emt 0:05:22]} 45. Bc5 $40 {[%emt 0:01:06][%mdl 128] Threatening mate with Bxf8+. Black is in trouble.} Qf5 $2 {[%emt 0:01:46]} (45... Qxc6 46. Bxc6 Ne6) 46. Qb7+ {[%emt 0:03:51]} ({And not} 46. Bxf8+ Kxf8 47. Qd6+ Be7 48. Qb8+ Kg7 49. Qg8+ Kf6 50. Qf7+ Ke5 51. Qxe7+ Kxd5 52. Qb7+ Kc5 53. Qc7+ Kd5 54. Qb7+ Ke6 55. Qb6+ Kd7 $11) 46... Nd7 {[%emt 0:00:06]} 47. Bg1 {[%emt 0:00:44] A strong pair of Bishops.} Kf8 {[%emt 0:02:07]} 48. Bc6 {[%emt 0:00:58]} Nc5 {[%emt 0:02:10]} 49. Qxb5 {[%emt 0:02:09]} Nd3 {[%emt 0:01:25]} 50. Qb8+ {[%emt 0:02:17]} ({But not} 50. Qxc4 $2 Qf1 51. Qxd3 Qxd3 $19) 50... Kg7 {[%emt 0:03:25]} 51. Qb7+ {[%emt 0:00:08]} Kh8 $2 {[%emt 0:02:06]} (51... Kf8 52. Bd5 Bh4 53. Bxc4 Nf2+ 54. Bxf2 Bxf2) 52. Bd5 {[%emt 0:00:31] White wants to mate with Qb8+.} Be5 {[%emt 0:00:47] Against Qb8+} 53. Qa8+ {[%emt 0:00:51]} Kg7 {[%emt 0:00:07]} 54. Qg8+ {[%emt 0:00:12]} Kf6 {[%emt 0:00:04]} 55. Qd8+ {[%emt 0:01:19]} Kg7 {[%emt 0:00:09]} 56. Qe7+ {[%emt 0:01:48]} Kh8 {[%emt 0:00:10]} 57. a4 {[%emt 0:00:53]} h5 {[%emt 0:03:54]} 58. Qe6 {[%emt 0:00:51]} Qxe6 {[%emt 0:00:32]} 59. Bxe6 {[%emt 0:00:01][%mdl 4096] Endgame KBB-KBN} Bc7 {[%emt 0:01:40]} (59... Nxb2 $2 60. a5 $18) 60. Bxc4 {[%emt 0:00:27]} Nxb2 {[%emt 0:00:06]} 61. Bb5 {[%emt 0:00:06]} Kg7 {[%emt 0:00:49]} 62. Bd4+ {[%emt 0:01:06]} Kf7 {[%emt 0:00:20]} 63. Kg2 {[%emt 0:00:42] aiming for Kf3.} Ke6 {[%emt 0:00:32]} 64. h4 {[%emt 0:00:51]} Kf5 $2 {[%emt 0:00:33]} (64... Kd5 65. Bg1 (65. Be8 Nd3 $16) 65... Nc4) 65. Bd7+ $2 {[%emt 0:00:53]} (65. Kf3 {[%cal Rb5d7]} g5 66. hxg5) 65... Kf4 {[%emt 0:00:16]} 66. Bf6 {[%emt 0:00:25]} Nc4 {[%emt 0:00:39]} (66... Nd3 $142 67. Bg5+ Ke4 68. Bc6+ Kf5) 67. Bg5+ {[%emt 0:00:19]} Ke4 {[%emt 0:00:43]} 68. Be8 {[%emt 0:00:14]} Kf5 {[%emt 0:00:16]} 69. Bf7 {[%emt 0:00:51]} Ne5 {[%emt 0:02:07]} 70. Bd5 {[%emt 0:00:24]} Bb6 {[%emt 0:00:50]} (70... Ba5 $16 {was called for.} 71. c4 Nd3) 71. Be7 {[%emt 0:00:38]} Ng4 {[%emt 0:00:27]} 72. Bb7 {[%emt 0:00:32]} Ne3+ {[%emt 0:00:48]} 73. Kf3 {[%emt 0:00:08]} Nc4 {[%emt 0:00:14]} 74. Bd5 {[%emt 0:00:47]} Ne5+ $2 {[%emt 0:00:34]} (74... Nb2 75. Be4+ Ke6) 75. Ke2 {[%emt 0:00:05]} Ng4 {[%emt 0:00:41]} (75... Nd7 $142 76. Bb4 Bg1) 76. Bb4 {[%emt 0:01:06]} g5 {[%emt 0:00:17]} 77. hxg5 {[%emt 0:00:08]} Kxg5 {[%emt 0:00:04]} 78. a5 {[%emt 0:00:10]} Ba7 {[%emt 0:00:08]} 79. Bd6 {[%emt 0:00:29]} Nf6 {[%emt 0:00:25]} (79... Ne3 $142 80. Bf3 Nc4) 80. Bc6 {[%emt 0:00:11]} Kf5 {[%emt 0:01:14]} 81. Bc7 {[%emt 0:00:10]} Ke6 {[%emt 0:00:51]} 82. Kd3 {[%emt 0:01:39]} h4 {[%emt 0:01:34]} 83. Kc4 {[%emt 0:00:23] Inhibits Nd5.} h3 {[%emt 0:00:36]} 84. Bb6 {[%emt 0:00:36]} Bxb6 {[%emt 0:00:23]} 85. axb6 {[%emt 0:00:02] b7 would kill now.} Kd6 {[%emt 0:00:37]} 86. Kb5 {[%emt 0:00:28]} h2 {[%emt 0:00:26]} 87. c4 {[%emt 0:00:33][%cal Bc3c4,Bc4c5][%mdl 32]} Nd7 {[%emt 0:00:36] Prevents c5+.} 88. Bh1 {[%emt 0:00:41]} Nb8 {[%emt 0:01:22]} 89. c5+ {[%emt 0:00:30] Weighted Error Value: White=0.25 (precise) /Black=0.34} 1-0

[Event "Croatian 1B League 2022"]
[Site "Porec"]
[Date "2022.10.02"]
[Round "9.7"]
[White "Teclaf, Pawel"]
[Black "Brkic, Ante"]
[Result "1/2-1/2"]
[WhiteElo "2547"]
[BlackElo "2602"]
[Annotator "TA"]
[PlyCount "37"]
[EventDate "2022.09.24"]
[EventType "team-tourn"]
[EventCountry "CRO"]
[SourceTitle "playchess.com"]
[Source "ChessBase"]
[SourceQuality "1"]
[TimeControl "40/5400+30:1800+30"]

{[%evp 16,17,32,28]} 1. Nf3 {[%emt 0:00:24]} Nf6 {[%emt 0:01:28]} 2. g3 {[%emt 0:00:03]} g6 {[%emt 0:00:04]} 3. d4 {[%emt 0:00:02]} d5 {[%emt 0:00:11]} 4. Bg2 {[%emt 0:00:03]} Bg7 {[%emt 0:00:04]} 5. O-O {[%emt 0:00:04]} c6 {[%emt 0:00:03]} 6. c4 {[%emt 0:00:02]} O-O {[%emt 0:00:08]} 7. cxd5 {[%emt 0:00:03]} cxd5 {[%emt 0:00:04]} 8. Nc3 {[%emt 0:00:02]} e6 {[%emt 0:00:22] Recently 8...Ne4 got a lot of attention.} 9. Bf4 {[%emt 0:00:23] [#]} {Predecessor:} Nc6 $146 {D79: Fianchetto Grünfeld: Symmetrical Variation (6 0-0 c6 7 cxd5 cxd5).} 10. Ne5 Bd7 11. Qd2 Nxe5 12. Bxe5 Rc8 13. Rac1 Qe7 14. Rfd1 Rfd8 15. h4 h6 16. Bf3 Ne8 17. Bxg7 Kxg7 18. e3 Nd6 19. b3 {½-½ (27) Meier,G (2628)-Kamsky,G (2658) Dortmund 2021} 1/2-1/2

[Event "Croatian 1B League 2022"]
[Site "Porec"]
[Date "2022.10.02"]
[Round "9.8"]
[White "Saraci, Nderim"]
[Black "Sprenger, Jan Michael"]
[Result "1/2-1/2"]
[WhiteElo "2490"]
[BlackElo "2475"]
[Annotator "TA"]
[PlyCount "32"]
[EventDate "2022.09.24"]
[EventType "team-tourn"]
[EventCountry "CRO"]
[SourceTitle "playchess.com"]
[Source "ChessBase"]
[SourceQuality "1"]
[TimeControl "40/5400+30:1800+30"]

{[%evp 16,19,0,37,45,0]} 1. e4 {[%emt 0:00:05]} c5 {[%emt 0:01:39]} 2. c3 {[%emt 0:00:07]} d5 {[%emt 0:00:06]} 3. exd5 {[%emt 0:00:06]} Qxd5 {[%emt 0:00:03]} 4. d4 {[%emt 0:00:09]} Nf6 {[%emt 0:00:06]} 5. Nf3 {[%emt 0:00:08]} Bg4 {[%emt 0:00:07]} 6. Be2 {[%emt 0:00:06]} e6 {[%emt 0:00:02]} 7. O-O {[%emt 0:00:08]} cxd4 {[%emt 0:00:04]} 8. cxd4 {[%emt 0:00:06]} Be7 {[%emt 0:00:07]} 9. Nc3 {[%emt 0:00:05]} Qa5 {[%emt 0:00:04] B22: Sicilian: 2 c3.} 10. h3 {[%emt 0:00:04] [#] An uneventful encounter.} (10. Qb3 $5 {[%cal Rb3b7]} Qb6 11. Qxb6 axb6 12. Bb5+ Nc6 13. Ne5 $16) {Predecessor:} 10... Bh5 $146 11. Qb3 Qb4 12. g4 Bg6 13. g5 Ne4 14. Qxb4 Bxb4 15. Nb5 Na6 16. Nh4 Ke7 {½-½ (56) Mammadova,N (2198)-Ayazmali,G (1839) Izmir 2016} 1/2-1/2

[Event "Croatian 1B League 2022"]
[Site "Porec"]
[Date "2022.10.02"]
[Round "9.9"]
[White "Muha, Miljenko"]
[Black "Milanovic, Danilo"]
[Result "1/2-1/2"]
[WhiteElo "2298"]
[BlackElo "2403"]
[Annotator "TA"]
[PlyCount "31"]
[EventDate "2022.09.24"]
[EventType "team-tourn"]
[EventCountry "CRO"]
[SourceTitle "playchess.com"]
[Source "ChessBase"]
[SourceQuality "1"]
[TimeControl "40/5400+30:1800+30"]

{[%evp 14,15,22,-6]} 1. Nf3 {[%emt 0:00:04]} Nf6 {[%emt 0:01:04]} 2. g3 {[%emt 0:00:05]} d5 {[%emt 0:00:06]} 3. Bg2 {[%emt 0:00:04]} c6 {[%emt 0:00:05]} 4. O-O {[%emt 0:00:04]} Bf5 {[%emt 0:00:05]} 5. d4 {[%emt 0:00:06]} e6 {[%emt 0:00:06]} 6. c4 {[%emt 0:00:04]} Nbd7 {[%emt 0:00:04]} 7. Nc3 {[%emt 0:00:09]} Be7 {[%emt 0:00:05]} 8. Nd2 {[%emt 0:00:05] [#]} {Predecessor:} O-O $146 {D11: Slav Defence: 3 Nf3 sidelines and 3...Nf6 4 e3 Bg4.} 9. e4 dxe4 10. Ndxe4 Nxe4 11. Nxe4 Nf6 12. Re1 Nxe4 13. Bxe4 Bxe4 14. Rxe4 Bf6 15. Be3 Qa5 16. Qb3 {½-½ (25) Batsuren,D (2481)-Batchuluun,T (2534) Ulaanbaatar 2020} 1/2-1/2

[Event "Croatian 1B League 2022"]
[Site "Porec"]
[Date "2022.10.02"]
[Round "9.11"]
[White "Sekelja, Marko"]
[Black "Soldo, Robert"]
[Result "1/2-1/2"]
[WhiteElo "2088"]
[BlackElo "2115"]
[Annotator "TA"]
[PlyCount "30"]
[EventDate "2022.09.24"]
[EventType "team-tourn"]
[EventCountry "CRO"]
[SourceTitle "playchess.com"]
[Source "ChessBase"]
[SourceQuality "1"]
[TimeControl "40/5400+30:1800+30"]

{[%evp 12,16,38,0,18,-31,-12]} 1. e4 {[%emt 0:00:10]} e5 {[%emt 0:00:05]} 2. Nf3 {[%emt 0:00:05]} Nc6 {[%emt 0:00:06]} 3. Bb5 {[%emt 0:00:05]} a6 {[%emt 0:00:10]} 4. Ba4 {[%emt 0:00:05]} Nf6 {[%emt 0:00:05]} 5. d3 {[%emt 0:00:09]} d6 {[%emt 0:00:12]} 6. O-O {[%emt 0:00:06]} Be7 {[%emt 0:00:05]} 7. Nc3 {[%emt 0:00:05]} O-O {[%emt 0:00:08] C84: Closed Ruy Lopez: Unusual White 6th moves.} 8. Bg5 {[%emt 0:00:06]} (8. Bxc6 $11 {is more appropriate.} bxc6 9. b3) 8... Bg4 {[%emt 0:00:10] [#] A rather calm draw.} {Predecessor:} 9. b4 $146 Nxb4 10. Rb1 c5 11. Nd5 Nbxd5 12. exd5 Nxd5 13. Bxe7 Qxe7 14. d4 Nc3 15. Qc1 Nxa4 {0-1 (36) Zambrano Ferrin,E-Malusin Valarezdo,B Chess.com INT 2020} 1/2-1/2

[Event "Croatian 1B League 2022"]
[Site "Porec"]
[Date "2022.10.02"]
[Round "9.12"]
[White "Dabic, Stjepan"]
[Black "Tomas, Ante"]
[Result "1/2-1/2"]
[WhiteElo "2096"]
[BlackElo "2137"]
[Annotator "TA"]
[PlyCount "37"]
[EventDate "2022.09.24"]
[EventType "team-tourn"]
[EventCountry "CRO"]
[SourceTitle "playchess.com"]
[Source "ChessBase"]
[SourceQuality "1"]
[TimeControl "40/5400+30:1800+30"]

{[%evp 9,14,4,10,0,15,9,45]} 1. Nf3 {[%emt 0:00:07]} f5 {[%emt 0:00:18]} 2. g3 {[%emt 0:00:05]} Nf6 {[%emt 0:00:05]} 3. Bg2 {[%emt 0:00:04]} g6 {[%emt 0:00:09]} 4. O-O {[%emt 0:00:10]} Bg7 {[%emt 0:00:03]} 5. d3 {[%emt 0:00:06]} O-O {[%emt 0:00:08] The position is equal.} 6. Nbd2 {[%emt 0:00:07] A04: Unusual lines after 1 Nf3 and King's Indian Attack.} e6 {[%emt 0:00:08]} 7. c3 {[%emt 0:00:06]} d5 {[%emt 0:00:04] [#] A rather calm draw.  Weighted Error Value: White=0.04 (flawless) /Black=0.06 (flawless)} {Predecessor:} 8. h3 $146 Nbd7 9. Nh2 e5 10. f3 c6 11. Qc2 Qb6+ 12. Kh1 Nh5 13. Ne4 fxe4 14. e3 Nxg3+ 15. Kg1 Nxf1 16. Kxf1 exd3 17. Qxd3 e4 18. Qe2 exf3 19. Nxf3 {0-1 (19) Trueman,F (1566)-Czarny,K (1710) Winnipeg 2009} 1/2-1/2

[Event "Croatian 1B League 2022"]
[Site "Porec"]
[Date "2022.10.02"]
[Round "9.13"]
[White "Doric, Darko"]
[Black "Movsesian, Sergei"]
[Result "0-1"]
[ECO "D00"]
[WhiteElo "2457"]
[BlackElo "2619"]
[Annotator "TA"]
[PlyCount "76"]
[EventDate "2022.09.24"]
[EventType "team-tourn"]
[EventCountry "CRO"]
[SourceTitle "playchess.com"]
[Source "ChessBase"]
[SourceQuality "1"]
[TimeControl "40/5400+30:1800+30"]

{[%evp 9,76,-9,0,0,0,0,0,-3,31,0,0,-8,0,-21,-26,-22,-17,-31,-28,-37,-26,-37,-12,-12,-14,-41,-20,-44,-37,-37,-32,-29,-10,-34,-26,-55,-33,-71,-48,-54,-31,-143,-133,-153,-158,-154,-151,-102,-144,-147,-142,-143,-121,-112,-106,-97,-50,-36,-62,-65,-64,-133,-137,-146,-148,-150,-150,-557,-544]} 1. d4 {[%emt 0:00:03]} Nf6 {[%emt 0:00:05]} 2. Bg5 {[%emt 0:00:44]} d5 {[%emt 0:02:34]} 3. e3 {[%emt 0:00:23]} c5 {[%emt 0:03:28]} 4. Bxf6 {[%emt 0:00:15]} gxf6 {[%emt 0:00:16]} 5. dxc5 {[%emt 0:00:07]} e6 {[%emt 0:01:21]} 6. Nf3 {[%emt 0:00:06] D00: 1 d4 d5: Unusual lines.} Bxc5 {[%emt 0:01:01]} 7. Be2 {[%emt 0:00:02]} Nc6 {[%emt 0:03:03]} 8. O-O {[%emt 0:00:18] [#] The position is equal.} a6 $146 {[%emt 0:03:56]} ({Predecessor:} 8... f5 9. c4 d4 10. b4 Bxb4 11. exd4 O-O 12. Qb3 Bd6 13. Rd1 Qf6 14. Nc3 b6 {½-½ (39) Erigaisi,A (2725)-Wojtaszek,R (2696) chess24.com INT 2022}) 9. c4 {[%emt 0:05:29]} dxc4 {[%emt 0:04:14]} 10. Qxd8+ {[%emt 0:03:28]} Kxd8 {[%emt 0:00:42]} 11. Rd1+ {[%emt 0:00:43]} Ke7 {[%emt 0:01:25]} 12. Bxc4 {[%emt 0:00:07]} Bd7 {[%emt 0:04:35]} (12... Bb6 {is more complex.} 13. Nc3 Bd7 14. g3 Rac8) 13. Nbd2 {[%emt 0:02:51]} (13. Nc3 {looks sharper.} Ne5 14. Be2 Bb6 15. Nd4) 13... Rhd8 {[%emt 0:01:40]} 14. Rac1 {[%emt 0:05:11][%cal Oc4e6]} Ba7 {[%emt 0:03:10]} 15. a3 {[%emt 0:04:59]} Be8 {[%emt 0:02:26]} 16. Kf1 {[%emt 0:01:08]} Rac8 {[%emt 0:01:51][%cal Ba8c8,Bc8c7,Bc7d7][%mdl 32]} 17. b4 {[%emt 0:02:08]} a5 {[%emt 0:03:38]} (17... Ne5 $5 {[%cal Re5c4]} 18. Be2 Nxf3 19. Nxf3 Rxd1+ 20. Rxd1 Ba4 $15) 18. b5 {[%emt 0:02:10]} Ne5 {[%emt 0:03:38]} 19. Nxe5 {[%emt 0:01:29]} fxe5 {[%emt 0:00:13]} 20. a4 {[%emt 0:00:20]} Rc7 {[%emt 0:03:44]} 21. Rc2 {[%emt 0:03:42]} f6 {[%emt 0:06:46]} 22. Ke2 {[%emt 0:08:06]} Bg6 {[%emt 0:03:11]} (22... f5 {keeps more tension.} 23. f3 Bh5 24. e4 Rcd7) 23. Rc3 {[%emt 0:00:24]} Bb6 {[%emt 0:12:51] Black has more active pieces.} 24. Rdc1 {[%emt 0:08:02]} Rcd7 {[%emt 0:00:53]} 25. Nb3 {[%emt 0:00:54]} (25. Nf1 $1 $15) 25... Bh5+ $1 $17 {[%emt 0:01:46] A strong pair of Bishops.} 26. f3 {[%emt 0:00:09]} e4 {[%emt 0:00:21]} 27. g4 {[%emt 0:04:07]} exf3+ $1 {[%emt 0:01:35]} 28. Kxf3 {[%emt 0:00:06]} Bg6 {[%emt 0:01:00]} 29. Be2 {[%emt 0:08:02]} h5 {[%emt 0:03:41] White must now prevent ...hxg4+.} 30. h3 {[%emt 0:00:20]} hxg4+ {[%emt 0:01:50]} 31. hxg4 {[%emt 0:00:02]} Rh8 {[%emt 0:03:42]} 32. Kg3 {[%emt 0:03:25] [#] Against Rh2} Ba7 {[%emt 0:03:20]} (32... f5 $1 $17 33. Rc8 Rh7) 33. Bf3 $15 {[%emt 0:02:53]} Bb8+ {[%emt 0:03:15]} 34. Kg2 {[%emt 0:00:12]} Be5 {[%emt 0:01:07]} 35. Nd4 {[%emt 0:04:52] [#]} ({White should play} 35. Rc8 $1 $15 Rxc8 36. Rxc8) 35... Rh2+ $1 $17 {[%emt 0:02:09]} ({But not} 35... Bxd4 $6 36. exd4 Rxd4 37. Rc7+ Kd6 38. Rxb7 $11) 36. Kg1 {[%emt 0:00:03][%cal Of3b7]} Ra2 {[%emt 0:02:08]} 37. b6 {[%emt 0:04:37][%cal Oc3c7]} Rxa4 {[%emt 0:04:06]} 38. Bxb7 $2 {[%emt 0:05:43]} (38. Rc4 $17 {is more resistant.} Bxd4 39. exd4 Rxd4 40. Rc7+ Kd6 41. Bxb7) 38... Raxd4 {[%emt 0:01:04] Weighted Error Value: White=0.35/Black=0.06 (flawless)} ({Worse is} 38... Rxb7 39. Rc7+ Rxc7 40. bxc7 Bxc7 41. Rxc7+ Ke8 42. Nxe6 $15) 0-1

[Event "Croatian 1B League 2022"]
[Site "Porec"]
[Date "2022.10.02"]
[Round "9.14"]
[White "Jovanovic, Zoran"]
[Black "Maksimovic, Bojan"]
[Result "1/2-1/2"]
[ECO "B43"]
[WhiteElo "2519"]
[BlackElo "2468"]
[Annotator "TA"]
[PlyCount "37"]
[EventDate "2022.09.24"]
[EventType "team-tourn"]
[EventCountry "CRO"]
[SourceTitle "playchess.com"]
[Source "ChessBase"]
[SourceQuality "1"]
[TimeControl "40/5400+30:1800+30"]

{[%evp 13,37,6,27,18,34,4,37,29,35,27,38,12,12,15,18,10,14,12,35,31,37,27,17,0,8,10]} 1. e4 {[%emt 0:07:51]} c5 {[%emt 0:00:08]} 2. Nf3 {[%emt 0:00:07]} e6 {[%emt 0:00:06]} 3. d4 {[%emt 0:00:05]} cxd4 {[%emt 0:00:06]} 4. Nxd4 {[%emt 0:00:02]} a6 {[%emt 0:00:12]} 5. Nc3 {[%emt 0:00:25]} b5 {[%emt 0:00:07]} 6. g3 {[%emt 0:03:53]} Bb7 {[%emt 0:02:19]} 7. Bg2 {[%emt 0:04:30]} b4 {[%emt 0:07:34]} 8. Na4 {[%emt 0:11:30] B43: Sicilian: Kan Variation: 5 Nc3.} Nf6 {[%emt 0:00:52]} 9. Qe2 {[%emt 0:00:44]} Nc6 {[%emt 0:11:28]} 10. Nb3 {[%emt 0:14:49] White is slightly better.} d6 {[%emt 0:12:21]} 11. Be3 {[%emt 0:10:00]} Nd7 {[%emt 0:00:22]} 12. c4 {[%emt 0:04:15]} bxc3 {[%emt 0:06:24]} 13. Nxc3 {[%emt 0:00:24]} Be7 {[%emt 0:00:06]} 14. O-O {[%emt 0:00:31]} O-O {[%emt 0:00:06]} 15. Rfd1 {[%emt 0:02:05] [#]} Rc8 $146 {[%emt 0:03:45]} ({Predecessor:} 15... Qb8 16. Rac1 Rc8 17. f4 a5 18. Nd4 Nxd4 19. Bxd4 Nc5 20. Qg4 e5 21. Be3 Ne6 {0-1 (32) Tatai,S (2357)-Drabke,L (2428) Bratto 2004}) 16. f4 {[%emt 0:00:18]} Na5 {[%emt 0:02:48]} 17. Nxa5 {[%emt 0:01:17]} Qxa5 {[%emt 0:00:05]} 18. a3 {[%emt 0:00:15]} Qc7 {[%emt 0:00:21]} 19. Rac1 {[%emt 0:06:02] Weighted Error Value: White=0.09 (flawless) /Black=0.09 (flawless)} 1/2-1/2